[Event "Late-Titled-Tuesday-Blitz-May-14-2024"]
[Site "Chess.com"]
[Date "2024.05.14"]
[Round "11"]
[White "munozmiguelangel1982"]
[Black "crazycheesecake"]
[Result "0-1"]
[WhiteElo "2206"]
[BlackElo "2153"]
[TimeControl "180+1"]
[EndTime "16:03:29 PDT"]
[Termination "crazycheesecake won by checkmate"]

1. e4 {[%clk 0:03:00.9]} 1... e5 {[%clk 0:02:59]} 2. Nf3 {[%clk 0:02:59.3]} 2...
Nc6 {[%clk 0:02:55.4]} 3. Bc4 {[%clk 0:02:57]} 3... Nf6 {[%clk 0:02:55.6]} 4.
Ng5 {[%clk 0:02:55.7]} 4... d5 {[%clk 0:02:54.8]} 5. exd5 {[%clk 0:02:50.1]}
5... Na5 {[%clk 0:02:55.2]} 6. Bb5+ {[%clk 0:02:49.8]} 6... c6 {[%clk
0:02:55.5]} 7. dxc6 {[%clk 0:02:50.4]} 7... bxc6 {[%clk 0:02:56.2]} 8. Qf3
{[%clk 0:02:50.6]} 8... cxb5 {[%clk 0:02:17.9]} 9. Qxa8 {[%clk 0:02:49.4]} 9...
Nd5 {[%clk 0:02:17.9]} 10. d3 {[%clk 0:02:36.5]} 10... Bc5 {[%clk 0:02:15.1]}
11. O-O {[%clk 0:02:27.8]} 11... O-O {[%clk 0:02:13.4]} 12. a3 {[%clk
0:02:21.6]} 12... Qd7 {[%clk 0:02:09.3]} 13. b4 {[%clk 0:02:04.4]} 13... Bd4
{[%clk 0:02:07.1]} 14. c3 {[%clk 0:01:58.1]} 14... Bb7 {[%clk 0:01:57.1]} 15.
Qxf8+ {[%clk 0:01:56.3]} 15... Kxf8 {[%clk 0:01:57.1]} 16. cxd4 {[%clk 0:01:56]}
16... Nb3 {[%clk 0:01:55.7]} 17. Ra2 {[%clk 0:01:54.3]} 17... Nxd4 {[%clk
0:01:55.2]} 18. Be3 {[%clk 0:01:47.4]} 18... Qg4 {[%clk 0:01:40.9]} 19. Bxd4
{[%clk 0:01:04.5]} 19... exd4 {[%clk 0:01:30.2]} 20. Ne4 {[%clk 0:01:03.6]}
20... Nf4 {[%clk 0:01:29.7]} 21. f3 {[%clk 0:00:57.4]} 21... Qg6 {[%clk
0:01:21.9]} 22. Rd2 {[%clk 0:00:46.6]} 22... Nd5 {[%clk 0:01:14.4]} 23. Rff2
{[%clk 0:00:42.3]} 23... Ne3 {[%clk 0:01:11]} 24. Ra2 {[%clk 0:00:37.3]} 24...
Bd5 {[%clk 0:01:07.6]} 25. Ra1 {[%clk 0:00:34]} 25... f5 {[%clk 0:00:59.1]} 26.
Ng3 {[%clk 0:00:32.3]} 26... h5 {[%clk 0:00:55.8]} 27. a4 {[%clk 0:00:31.9]}
27... h4 {[%clk 0:00:55.4]} 28. Nf1 {[%clk 0:00:32.4]} 28... h3 {[%clk
0:00:39.4]} 29. Ng3 {[%clk 0:00:18.7]} 29... Nxg2 {[%clk 0:00:33.2]} 30. axb5
{[%clk 0:00:18.7]} 30... f4 {[%clk 0:00:32.7]} 31. Ne4 {[%clk 0:00:05.8]} 31...
Ne1+ {[%clk 0:00:31.5]} 32. Kf1 {[%clk 0:00:06]} 32... Nxd3 {[%clk 0:00:31.7]}
33. Rd2 {[%clk 0:00:05.3]} 33... Bxe4 {[%clk 0:00:29.7]} 34. fxe4 {[%clk
0:00:03.6]} 34... Qxe4 {[%clk 0:00:30]} 35. Re2 {[%clk 0:00:04.5]} 35... Qh1#
{[%clk 0:00:28]} 0-1

[Event "Late-Titled-Tuesday-Blitz-May-14-2024"]
[Site "Chess.com"]
[Date "2024.05.14"]
[Round "11"]
[White "nitpicker"]
[Black "Veleamater"]
[Result "0-1"]
[WhiteElo "2306"]
[BlackElo "2441"]
[TimeControl "180+1"]
[EndTime "16:03:37 PDT"]
[Termination "Veleamater won by resignation"]

1. d4 {[%clk 0:03:00.9]} 1... Nf6 {[%clk 0:02:59.4]} 2. c4 {[%clk 0:03:00.9]}
2... g6 {[%clk 0:02:59.8]} 3. Nc3 {[%clk 0:03:00.1]} 3... Bg7 {[%clk 0:03:00.1]}
4. e4 {[%clk 0:03:00.2]} 4... O-O {[%clk 0:03:00.5]} 5. Be2 {[%clk 0:03:00.6]}
5... d6 {[%clk 0:03:00.6]} 6. Nf3 {[%clk 0:03:00.8]} 6... e5 {[%clk 0:03:00.8]}
7. O-O {[%clk 0:03:00.7]} 7... Nc6 {[%clk 0:03:01]} 8. d5 {[%clk 0:03:00.5]}
8... Ne7 {[%clk 0:03:01.5]} 9. a4 {[%clk 0:03:01]} 9... a5 {[%clk 0:03:00.1]}
10. Ne1 {[%clk 0:02:59.8]} 10... Ne8 {[%clk 0:02:59.5]} 11. Nd3 {[%clk
0:02:57.3]} 11... c5 {[%clk 0:02:59.5]} 12. dxc6 {[%clk 0:02:55]} 12... bxc6
{[%clk 0:02:59.3]} 13. Be3 {[%clk 0:02:39.6]} 13... Be6 {[%clk 0:02:59.2]} 14.
b3 {[%clk 0:02:36.2]} 14... d5 {[%clk 0:02:58.9]} 15. cxd5 {[%clk 0:02:30.6]}
15... cxd5 {[%clk 0:02:58.7]} 16. Bc5 {[%clk 0:02:28.6]} 16... d4 {[%clk
0:02:41.8]} 17. Nb5 {[%clk 0:02:24.2]} 17... Rc8 {[%clk 0:02:40.9]} 18. Rc1
{[%clk 0:02:22.1]} 18... f5 {[%clk 0:02:37.3]} 19. f3 {[%clk 0:02:19.7]} 19...
fxe4 {[%clk 0:02:36.3]} 20. fxe4 {[%clk 0:02:18.9]} 20... Rxf1+ {[%clk
0:02:36.6]} 21. Bxf1 {[%clk 0:02:17.3]} 21... Nc6 {[%clk 0:02:32.3]} 22. Ba3
{[%clk 0:02:02]} 22... Qh4 {[%clk 0:02:25.9]} 23. Nc5 {[%clk 0:01:58.9]} 23...
Bg4 {[%clk 0:02:16]} 24. Qe1 {[%clk 0:01:52.7]} 24... Qxe1 {[%clk 0:02:10.3]}
25. Rxe1 {[%clk 0:01:52.6]} 25... Nb4 {[%clk 0:02:09.2]} 26. Bxb4 {[%clk
0:01:45.7]} 26... axb4 {[%clk 0:02:08.8]} 27. Na6 {[%clk 0:01:46.3]} 27... Bh6
{[%clk 0:01:50.7]} 28. Bc4+ {[%clk 0:01:45.8]} 28... Kg7 {[%clk 0:01:49.9]} 29.
Nxb4 {[%clk 0:01:42.8]} 29... Bd2 {[%clk 0:01:48.2]} 30. Nd3 {[%clk 0:01:31.7]}
30... Bxe1 {[%clk 0:01:39.3]} 31. Nxe1 {[%clk 0:01:32.6]} 31... Bd7 {[%clk
0:01:31]} 32. Na3 {[%clk 0:01:14.7]} 32... Nd6 {[%clk 0:01:28.5]} 33. Nd3 {[%clk
0:01:07.7]} 33... Nxc4 {[%clk 0:01:21.7]} 34. Nxc4 {[%clk 0:01:02.7]} 34... Bxa4
{[%clk 0:01:18.1]} 35. Nb6 {[%clk 0:00:52]} 35... Rc3 {[%clk 0:01:16.5]} 36.
Nxe5 {[%clk 0:00:51]} 36... Bxb3 {[%clk 0:01:12.8]} 37. Kf2 {[%clk 0:00:47.7]}
37... Rc2+ {[%clk 0:01:02.8]} 38. Kf3 {[%clk 0:00:45.1]} 38... Be6 {[%clk
0:00:58.4]} 39. Nd5 {[%clk 0:00:43.9]} 39... Bxd5 {[%clk 0:00:55.3]} 40. exd5
{[%clk 0:00:44.2]} 40... Kf6 {[%clk 0:00:55.1]} 41. Ng4+ {[%clk 0:00:39.6]}
41... Kf5 {[%clk 0:00:51.7]} 42. Nf2 {[%clk 0:00:37.6]} 42... Ke5 {[%clk
0:00:46.2]} 43. Nd3+ {[%clk 0:00:33.9]} 43... Kd6 {[%clk 0:00:43.2]} 44. h4
{[%clk 0:00:30.1]} 44... Rd2 {[%clk 0:00:37.6]} 45. Ke4 {[%clk 0:00:27.8]} 45...
Rxg2 {[%clk 0:00:35.6]} 46. Ne5 {[%clk 0:00:15.4]} 46... Re2+ {[%clk 0:00:34.3]}
0-1

[Event "Late-Titled-Tuesday-Blitz-May-14-2024"]
[Site "Chess.com"]
[Date "2024.05.14"]
[Round "11"]
[White "jinxy2009"]
[Black "Godzillator"]
[Result "0-1"]
[WhiteElo "2297"]
[BlackElo "2423"]
[TimeControl "180+1"]
[EndTime "16:03:39 PDT"]
[Termination "Godzillator won by checkmate"]

1. e4 {[%clk 0:03:00.9]} 1... d5 {[%clk 0:02:58.8]} 2. exd5 {[%clk 0:03:00.2]}
2... Qxd5 {[%clk 0:02:58.4]} 3. Nc3 {[%clk 0:03:00.9]} 3... Qd8 {[%clk
0:02:57.5]} 4. d4 {[%clk 0:03:00.1]} 4... c6 {[%clk 0:02:57.6]} 5. Nf3 {[%clk
0:03:00.3]} 5... Nf6 {[%clk 0:02:57.9]} 6. Bf4 {[%clk 0:02:57.2]} 6... Bg4
{[%clk 0:02:57.7]} 7. h3 {[%clk 0:02:57]} 7... Bxf3 {[%clk 0:02:53.4]} 8. Qxf3
{[%clk 0:02:56.8]} 8... Qxd4 {[%clk 0:02:53.6]} 9. Bd3 {[%clk 0:02:56.8]} 9...
e5 {[%clk 0:02:50.2]} 10. Bg3 {[%clk 0:02:49.8]} 10... Bb4 {[%clk 0:02:45.1]}
11. O-O-O {[%clk 0:02:46.4]} 11... Bxc3 {[%clk 0:02:44.7]} 12. bxc3 {[%clk
0:02:44.8]} 12... Qxc3 {[%clk 0:02:43.5]} 13. Bxe5 {[%clk 0:02:44.4]} 13... Qa3+
{[%clk 0:02:28.6]} 14. Bb2 {[%clk 0:02:44.1]} 14... Qxa2 {[%clk 0:02:28.5]} 15.
Rhe1+ {[%clk 0:02:43.8]} 15... Kf8 {[%clk 0:02:28.1]} 16. Bxf6 {[%clk
0:02:30.8]} 16... gxf6 {[%clk 0:02:26.3]} 17. Qxf6 {[%clk 0:02:30.9]} 17... Qa3+
{[%clk 0:02:23.6]} 18. Kd2 {[%clk 0:02:11.6]} 18... Rg8 {[%clk 0:02:15.5]} 19.
Qd8+ {[%clk 0:01:18.5]} 19... Kg7 {[%clk 0:02:14.2]} 20. Qg5+ {[%clk 0:01:18.7]}
20... Kf8 {[%clk 0:02:08.6]} 21. Qh6+ {[%clk 0:01:16.3]} 21... Rg7 {[%clk
0:02:00.3]} 22. Re4 {[%clk 0:01:16]} 22... Nd7 {[%clk 0:01:50.3]} 23. Rg4 {[%clk
0:01:13.1]} 23... Qa5+ {[%clk 0:01:47.8]} 24. c3 {[%clk 0:01:11]} 24... Qe5
{[%clk 0:01:42.8]} 25. Rxg7 {[%clk 0:01:05.7]} 25... Qxg7 {[%clk 0:01:40.5]} 26.
Qd6+ {[%clk 0:01:05.9]} 26... Kg8 {[%clk 0:01:40.3]} 27. Qxd7 {[%clk 0:01:05.7]}
27... Qxg2 {[%clk 0:01:33.1]} 28. Qf5 {[%clk 0:01:01.6]} 28... Rd8 {[%clk
0:01:13.4]} 29. Qxh7+ {[%clk 0:00:57.5]} 29... Kf8 {[%clk 0:01:13.6]} 30. Qh8+
{[%clk 0:00:55.8]} 30... Ke7 {[%clk 0:01:13.3]} 31. Qe5+ {[%clk 0:00:49.5]}
31... Kf8 {[%clk 0:01:08.7]} 32. Qf6 {[%clk 0:00:38.7]} 32... Rd5 {[%clk
0:01:04.6]} 33. Re1 {[%clk 0:00:37.1]} 33... Qxh3 {[%clk 0:00:57.5]} 34. Re3
{[%clk 0:00:29.7]} 34... Qh7 {[%clk 0:00:46.4]} 35. Kc2 {[%clk 0:00:23.5]} 35...
Qh5 {[%clk 0:00:31.8]} 36. Bc4 {[%clk 0:00:15.8]} 36... Qd1+ {[%clk 0:00:30.8]}
37. Kb2 {[%clk 0:00:14]} 37... Rd2+ {[%clk 0:00:28.5]} 38. Ka3 {[%clk
0:00:14.4]} 38... Qa1+ {[%clk 0:00:27.6]} 39. Kb4 {[%clk 0:00:14.8]} 39... Qb2+
{[%clk 0:00:21.2]} 40. Kc5 {[%clk 0:00:14.6]} 40... Qb6# {[%clk 0:00:21.1]} 0-1

[Event "Late-Titled-Tuesday-Blitz-May-14-2024"]
[Site "Chess.com"]
[Date "2024.05.14"]
[Round "11"]
[White "Zhigalko_Sergei"]
[Black "KuzubovYuriy"]
[Result "1-0"]
[WhiteElo "2844"]
[BlackElo "2926"]
[TimeControl "180+1"]
[EndTime "16:03:40 PDT"]
[Termination "Zhigalko_Sergei won by resignation"]

1. e4 {[%clk 0:03:00.9]} 1... c5 {[%clk 0:03:00.3]} 2. Nf3 {[%clk 0:03:00.4]}
2... Nc6 {[%clk 0:03:01]} 3. c3 {[%clk 0:03:00.6]} 3... Nf6 {[%clk 0:03:00.6]}
4. e5 {[%clk 0:03:01]} 4... Nd5 {[%clk 0:03:01.4]} 5. Bc4 {[%clk 0:03:01.6]}
5... Nb6 {[%clk 0:03:01.7]} 6. Bb3 {[%clk 0:03:02.1]} 6... d5 {[%clk 0:03:02.4]}
7. exd6 {[%clk 0:03:02]} 7... Qxd6 {[%clk 0:03:02.9]} 8. O-O {[%clk 0:03:02.7]}
8... Bf5 {[%clk 0:03:03.2]} 9. d4 {[%clk 0:03:02.1]} 9... cxd4 {[%clk
0:03:03.1]} 10. Nxd4 {[%clk 0:03:03]} 10... Nxd4 {[%clk 0:03:00.9]} 11. cxd4
{[%clk 0:03:03.9]} 11... e6 {[%clk 0:03:01.4]} 12. Nc3 {[%clk 0:03:04.2]} 12...
Be7 {[%clk 0:02:59.1]} 13. Qf3 {[%clk 0:03:04.7]} 13... O-O {[%clk 0:02:45.7]}
14. d5 {[%clk 0:03:00.5]} 14... Rad8 {[%clk 0:02:35.7]} 15. Be3 {[%clk
0:02:48.2]} 15... Bf6 {[%clk 0:02:01.6]} 16. Rad1 {[%clk 0:02:41.4]} 16... Qb8
{[%clk 0:01:48.8]} 17. h3 {[%clk 0:01:58.9]} 17... Kh8 {[%clk 0:01:10.3]} 18.
Rfe1 {[%clk 0:01:50.4]} 18... Bg6 {[%clk 0:00:49.6]} 19. dxe6 {[%clk 0:01:18.1]}
19... fxe6 {[%clk 0:00:50.5]} 20. Rxd8 {[%clk 0:01:17.7]} 20... Rxd8 {[%clk
0:00:41.6]} 21. Bxe6 {[%clk 0:00:59.2]} 21... Bxc3 {[%clk 0:00:39.8]} 22. bxc3
{[%clk 0:00:57.7]} 22... Qe5 {[%clk 0:00:40]} 23. Bb3 {[%clk 0:00:46.7]} 23...
Qxc3 {[%clk 0:00:37.4]} 24. Rc1 {[%clk 0:00:45.8]} 24... Qa5 {[%clk 0:00:22.6]}
25. Qxb7 {[%clk 0:00:43.6]} 25... Nd5 {[%clk 0:00:20.6]} 26. Bg5 {[%clk
0:00:30.3]} 26... Nf6 {[%clk 0:00:20.7]} 27. Bxf6 {[%clk 0:00:12.9]} 27... gxf6
{[%clk 0:00:20.9]} 28. Qe7 {[%clk 0:00:13.4]} 28... Qb6 {[%clk 0:00:17.7]} 29.
Rc7 {[%clk 0:00:06.1]} 29... Rd1+ {[%clk 0:00:05.8]} 30. Bxd1 {[%clk 0:00:05.9]}
1-0

[Event "Late-Titled-Tuesday-Blitz-May-14-2024"]
[Site "Chess.com"]
[Date "2024.05.14"]
[Round "11"]
[White "Dexter_Dyke"]
[Black "Evgeny81"]
[Result "0-1"]
[WhiteElo "2596"]
[BlackElo "2769"]
[TimeControl "180+1"]
[EndTime "16:03:40 PDT"]
[Termination "Evgeny81 won by resignation"]

1. e4 {[%clk 0:03:00.2]} 1... d6 {[%clk 0:02:51.8]} 2. d4 {[%clk 0:02:59.8]}
2... Nf6 {[%clk 0:02:51.1]} 3. Nc3 {[%clk 0:03:00.7]} 3... g6 {[%clk 0:02:51.3]}
4. f3 {[%clk 0:03:00.3]} 4... Bg7 {[%clk 0:02:50.9]} 5. Be3 {[%clk 0:02:57.1]}
5... c6 {[%clk 0:02:50.2]} 6. Qd2 {[%clk 0:02:57.6]} 6... b5 {[%clk 0:02:50.2]}
7. h4 {[%clk 0:02:58.2]} 7... h5 {[%clk 0:02:49.1]} 8. O-O-O {[%clk 0:02:57.2]}
8... Qa5 {[%clk 0:02:44.9]} 9. Kb1 {[%clk 0:02:57.2]} 9... Nbd7 {[%clk 0:02:45]}
10. Nh3 {[%clk 0:02:57.2]} 10... Nb6 {[%clk 0:02:45.1]} 11. Ng5 {[%clk
0:02:30.4]} 11... b4 {[%clk 0:02:40.8]} 12. Ne2 {[%clk 0:02:30.9]} 12... Nc4
{[%clk 0:02:40.6]} 13. Qc1 {[%clk 0:02:31.5]} 13... Rb8 {[%clk 0:02:34.6]} 14.
Nf4 {[%clk 0:02:27.3]} 14... Nxe3 {[%clk 0:02:26.5]} 15. Qxe3 {[%clk 0:02:27.1]}
15... O-O {[%clk 0:02:23.4]} 16. g4 {[%clk 0:02:25.6]} 16... hxg4 {[%clk
0:02:23.1]} 17. h5 {[%clk 0:02:25.8]} 17... Qxg5 {[%clk 0:02:22.7]} 18. hxg6
{[%clk 0:02:25.9]} 18... e5 {[%clk 0:02:04.6]} 19. dxe5 {[%clk 0:02:18.3]} 19...
dxe5 {[%clk 0:02:01.4]} 20. Qxa7 {[%clk 0:02:03.9]} 20... Rb7 {[%clk 0:01:55]}
21. gxf7+ {[%clk 0:02:03.2]} 21... Rbxf7 {[%clk 0:01:42.9]} 22. Qc5 {[%clk
0:01:53.5]} 22... Qxf4 {[%clk 0:01:40]} 23. Bc4 {[%clk 0:01:52.2]} 23... gxf3
{[%clk 0:01:27.5]} 24. Rdg1 {[%clk 0:01:41.9]} 24... Bg4 {[%clk 0:01:21.9]} 25.
Rh4 {[%clk 0:01:29.5]} 25... f2 {[%clk 0:01:17]} 26. Rgh1 {[%clk 0:01:24.9]}
26... Nxe4 {[%clk 0:01:10]} 27. Bxf7+ {[%clk 0:01:12.7]} 27... Kxf7 {[%clk
0:01:05.3]} 28. Qc4+ {[%clk 0:01:05.7]} 28... Kg6 {[%clk 0:01:05.1]} 29. Qxc6+
{[%clk 0:00:38.9]} 29... Kg5 {[%clk 0:00:50.4]} 30. a4 {[%clk 0:00:19.1]} 30...
f1=Q+ {[%clk 0:00:46]} 31. Rxf1 {[%clk 0:00:19.6]} 31... Qxf1+ {[%clk
0:00:46.5]} 32. Ka2 {[%clk 0:00:19.4]} 32... Qf7+ {[%clk 0:00:39.9]} 33. b3
{[%clk 0:00:18.4]} 33... Nc3+ {[%clk 0:00:33.8]} 34. Kb2 {[%clk 0:00:18.5]}
34... Kxh4 {[%clk 0:00:32.1]} 35. Qh1+ {[%clk 0:00:17.8]} 35... Kg5 {[%clk
0:00:30.8]} 36. Qc1+ {[%clk 0:00:18.1]} 36... Qf4 {[%clk 0:00:30.2]} 37. Qg1
{[%clk 0:00:16.9]} 37... Qd4 {[%clk 0:00:25.7]} 38. Qc1+ {[%clk 0:00:15.4]}
38... Kg6 {[%clk 0:00:25.2]} 0-1

[Event "Late-Titled-Tuesday-Blitz-May-14-2024"]
[Site "Chess.com"]
[Date "2024.05.14"]
[Round "11"]
[White "lluiss"]
[Black "katharinareinecke"]
[Result "1-0"]
[WhiteElo "2236"]
[BlackElo "1931"]
[TimeControl "180+1"]
[EndTime "16:03:41 PDT"]
[Termination "lluiss won by resignation"]

1. Nf3 {[%clk 0:02:54.7]} 1... d5 {[%clk 0:02:59.5]} 2. d4 {[%clk 0:02:51.4]}
2... Nf6 {[%clk 0:02:59.2]} 3. c4 {[%clk 0:02:49.3]} 3... c6 {[%clk 0:02:58.6]}
4. cxd5 {[%clk 0:02:48.4]} 4... cxd5 {[%clk 0:02:57.6]} 5. Nc3 {[%clk
0:02:48.1]} 5... e6 {[%clk 0:02:56.5]} 6. Bf4 {[%clk 0:02:47.9]} 6... a6 {[%clk
0:02:55.2]} 7. e3 {[%clk 0:02:47.6]} 7... Bd6 {[%clk 0:02:54.8]} 8. Bxd6 {[%clk
0:02:46.7]} 8... Qxd6 {[%clk 0:02:55.5]} 9. Bd3 {[%clk 0:02:45.5]} 9... O-O
{[%clk 0:02:55]} 10. O-O {[%clk 0:02:45.5]} 10... b5 {[%clk 0:02:54.2]} 11. Qe2
{[%clk 0:02:39.6]} 11... Bb7 {[%clk 0:02:53.1]} 12. Rfc1 {[%clk 0:02:39.3]}
12... Ne4 {[%clk 0:02:51.6]} 13. Ne5 {[%clk 0:02:22.2]} 13... Nd7 {[%clk
0:02:36.8]} 14. f4 {[%clk 0:02:19.9]} 14... f5 {[%clk 0:02:26.7]} 15. Nxd7
{[%clk 0:01:56.4]} 15... Qxd7 {[%clk 0:02:26]} 16. Bxe4 {[%clk 0:01:49.2]} 16...
dxe4 {[%clk 0:02:24.2]} 17. Qd2 {[%clk 0:01:46.8]} 17... Bd5 {[%clk 0:02:22.5]}
18. Nxd5 {[%clk 0:01:31.6]} 18... Qxd5 {[%clk 0:02:13.2]} 19. Rc5 {[%clk
0:01:30.5]} 19... Qd7 {[%clk 0:02:06.3]} 20. Rac1 {[%clk 0:01:29.9]} 20... Rfc8
{[%clk 0:02:04.5]} 21. Qa5 {[%clk 0:01:29.8]} 21... Rxc5 {[%clk 0:01:56.3]} 22.
Rxc5 {[%clk 0:01:28.4]} 22... Rc8 {[%clk 0:01:45.7]} 23. Qc3 {[%clk 0:01:18.2]}
23... Rxc5 {[%clk 0:01:41.7]} 24. Qxc5 {[%clk 0:01:18.2]} 24... Kf7 {[%clk
0:01:32.8]} 25. h3 {[%clk 0:01:17.3]} 25... a5 {[%clk 0:01:23.1]} 26. Qb6 {[%clk
0:01:07.2]} 26... a4 {[%clk 0:01:20.8]} 27. Qc5 {[%clk 0:01:07]} 27... h6 {[%clk
0:01:19.2]} 28. Kf2 {[%clk 0:01:05.3]} 28... Kg6 {[%clk 0:01:17.6]} 29. g4
{[%clk 0:00:52.8]} 29... Kf6 {[%clk 0:00:51.9]} 30. gxf5 {[%clk 0:00:51.8]}
30... exf5 {[%clk 0:00:51]} 31. Qe5+ {[%clk 0:00:46.3]} 31... Kf7 {[%clk
0:00:50]} 32. d5 {[%clk 0:00:45.7]} 32... g5 {[%clk 0:00:46.6]} 33. Kg3 {[%clk
0:00:42.3]} 33... gxf4+ {[%clk 0:00:43.5]} 34. Kxf4 {[%clk 0:00:42.3]} 34... Kg6
{[%clk 0:00:33.3]} 35. d6 {[%clk 0:00:40.2]} 35... h5 {[%clk 0:00:27.9]} 36. h4
{[%clk 0:00:37.3]} 36... Kh6 {[%clk 0:00:20.4]} 37. a3 {[%clk 0:00:26.3]} 37...
Kg6 {[%clk 0:00:19.7]} 38. Qe7 {[%clk 0:00:21.1]} 38... Kh6 {[%clk 0:00:17.1]}
39. Qxd7 {[%clk 0:00:20.4]} 1-0

[Event "Late-Titled-Tuesday-Blitz-May-14-2024"]
[Site "Chess.com"]
[Date "2024.05.14"]
[Round "11"]
[White "Javadovvv"]
[Black "azikom"]
[Result "0-1"]
[WhiteElo "2583"]
[BlackElo "2704"]
[TimeControl "180+1"]
[EndTime "16:03:44 PDT"]
[Termination "azikom won by resignation"]

1. d4 {[%clk 0:02:58.1]} 1... Nf6 {[%clk 0:02:58.6]} 2. Nf3 {[%clk 0:02:58.7]}
2... c5 {[%clk 0:02:57.8]} 3. c3 {[%clk 0:02:58.1]} 3... Qb6 {[%clk 0:02:55.7]}
4. Qb3 {[%clk 0:02:55.7]} 4... d6 {[%clk 0:02:51.5]} 5. Bf4 {[%clk 0:02:54]}
5... Nbd7 {[%clk 0:02:47.4]} 6. e3 {[%clk 0:02:53.6]} 6... g6 {[%clk 0:02:41.5]}
7. h3 {[%clk 0:02:50.5]} 7... Bg7 {[%clk 0:02:41]} 8. Be2 {[%clk 0:02:50.4]}
8... O-O {[%clk 0:02:41.3]} 9. O-O {[%clk 0:02:50.9]} 9... Qc7 {[%clk
0:02:39.9]} 10. Nbd2 {[%clk 0:02:48.1]} 10... b6 {[%clk 0:02:38.6]} 11. Rfe1
{[%clk 0:02:45.8]} 11... Bb7 {[%clk 0:02:37.8]} 12. Bh2 {[%clk 0:02:44.8]} 12...
Bc6 {[%clk 0:02:33.6]} 13. a4 {[%clk 0:02:43.7]} 13... a6 {[%clk 0:02:32.1]} 14.
Qc2 {[%clk 0:02:34.9]} 14... Qb7 {[%clk 0:02:30.5]} 15. Bd3 {[%clk 0:02:20]}
15... Rac8 {[%clk 0:02:24.1]} 16. Qd1 {[%clk 0:02:15.9]} 16... Ne4 {[%clk
0:02:11.7]} 17. Nxe4 {[%clk 0:02:10.6]} 17... Bxe4 {[%clk 0:02:11.2]} 18. Bxe4
{[%clk 0:02:07.3]} 18... Qxe4 {[%clk 0:02:10.6]} 19. Nd2 {[%clk 0:02:07.7]}
19... Qb7 {[%clk 0:02:09.7]} 20. Qf3 {[%clk 0:02:07.7]} 20... Rc7 {[%clk
0:02:03.6]} 21. g4 {[%clk 0:01:57.3]} 21... Rb8 {[%clk 0:02:02]} 22. Kg2 {[%clk
0:01:45.5]} 22... h6 {[%clk 0:01:48.1]} 23. h4 {[%clk 0:01:37.3]} 23... b5
{[%clk 0:01:45.4]} 24. axb5 {[%clk 0:01:36.6]} 24... axb5 {[%clk 0:01:46]} 25.
g5 {[%clk 0:01:28.1]} 25... h5 {[%clk 0:01:43.4]} 26. Ra2 {[%clk 0:01:20.7]}
26... b4 {[%clk 0:01:38.5]} 27. Rea1 {[%clk 0:01:17.3]} 27... Nb6 {[%clk
0:01:23.3]} 28. Qxb7 {[%clk 0:01:01.6]} 28... Rbxb7 {[%clk 0:01:22.3]} 29. Ne4
{[%clk 0:00:58.7]} 29... cxd4 {[%clk 0:01:14.7]} 30. cxd4 {[%clk 0:00:53.4]}
30... Rc2 {[%clk 0:01:11.4]} 31. b3 {[%clk 0:00:49.5]} 31... Rxa2 {[%clk
0:01:08.4]} 32. Rxa2 {[%clk 0:00:50.4]} 32... Nd5 {[%clk 0:01:08.7]} 33. Ra8+
{[%clk 0:00:48.9]} 33... Kh7 {[%clk 0:01:07.7]} 34. Nd2 {[%clk 0:00:49.1]} 34...
f6 {[%clk 0:00:56.5]} 35. Nc4 {[%clk 0:00:44.5]} 35... fxg5 {[%clk 0:00:54.8]}
36. hxg5 {[%clk 0:00:45.4]} 36... Nc3 {[%clk 0:00:54.9]} 37. Bg3 {[%clk
0:00:38.6]} 37... Ne4 {[%clk 0:00:52.2]} 38. Bh2 {[%clk 0:00:37.4]} 38... Nxg5
{[%clk 0:00:50.8]} 39. Ra4 {[%clk 0:00:31.9]} 39... Ne4 {[%clk 0:00:49.3]} 40.
Na5 {[%clk 0:00:32.2]} 40... Ra7 {[%clk 0:00:47.6]} 41. Ra1 {[%clk 0:00:27.2]}
41... g5 {[%clk 0:00:45.1]} 42. Kf3 {[%clk 0:00:24.8]} 42... Nc3 {[%clk
0:00:44.4]} 43. e4 {[%clk 0:00:23.6]} 43... Bxd4 {[%clk 0:00:41.9]} 0-1